bitfinex/quotes_ETHUSD_20230403
["timestamp","ask_amount","ask_price","bid_price","bid_amount"]
[1680549414446,10.21900218,1829.5,1829.4,0.56175522]
[1680549414646,10.22100218,1829.5,1829.4,0.56175522]
[1680549414997,10.22300218,1829.5,1829.4,0.56175522]
[1680549415197,10.22700218,1829.5,1829.4,0.56175522]
[1680549415733,10.22700218,1829.5,1829.3,0.56175522]
[1680549415936,6.84370022,1829.4,1829.3,0.56175522]
[1680549416101,7.66563022,1829.4,1829.3,0.84154228]
[1680549416455,7.11901022,1829.4,1829.3,0.84154228]
[1680549416603,7.66563022,1829.4,1829.3,0.84154228]
[1680549417115,7.11901022,1829.4,1829.3,0.84154228]
[1680549417313,7.12501022,1829.4,1829.3,0.84154228]
[1680549420102,7.67163022,1829.4,1829.3,0.84154228]
[1680549420711,8.21856838,1829.4,1829.3,0.84154228]
[1680549421144,8.21051013,1829.4,1829.3,0.84154228]
[1680549425833,16.75986512,1829.4,1829.1,0.56319077]
[1680549426029,7.005,1829.2,1829.1,0.56319077]
[1680549426229,7.007,1829.2,1829.1,0.56319077]
[1680549426429,7.007,1829.2,1829.1,1.40473305]
[1680549426631,7.28034,1829.2,1829.1,1.40492022]
[1680549426847,6.09634,1829.2,1829.1,0.56337153]
[1680549427028,6.09634,1829.2,1829.1,0.84154228]
[1680549427029,0.002,1829.2,1829.1,0.84154228]
[1680549427362,0.27334,1829.2,1829.1,0.56313296]
[1680549427721,0.54666,1829.3,1829.1,0.56313296]
[1680549427917,0.27334,1829.2,1829.1,0.56313296]
[1680549428650,7.41069499,1829.2,1829.0,1.40467524]
[1680549428832,1.414,1829.1,1828.9,0.56913296]
[1680549429029,1.414,1829.1,1828.9,0.56313296]
[1680549429030,7.42077,1829.0,1828.9,0.56313296]
[1680549429231,7.42277,1829.0,1828.9,0.56313296]
[1680549429467,7.96951,1829.0,1828.9,0.56313296]
[1680549429848,2.14851,1829.0,1828.9,0.56313296]
[1680549430079,1.45837,1829.0,1828.9,1.40467524]
[1680549430283,1.185,1829.0,1828.9,1.40467524]
[1680549430445,1.45837,1829.0,1828.9,0.56313296]
[1680549431148,0.002,1829.2,1828.9,0.84154228]
[1680549431360,7.28132,1829.3,1829.0,1.49148836]
[1680549431578,7.28132,1829.3,1829.1,0.56293365]
[1680549431759,7.28132,1829.3,1829.0,1.40733413]
[1680549431966,7.28132,1829.3,1829.1,0.56293365]
[1680549432270,6.09632,1829.3,1829.1,0.56293365]
[1680549432448,0.002,1829.3,1829.1,0.56672596]
[1680549432645,11.93873827,1829.4,1829.1,0.56672596]
[1680549432848,12.21204827,1829.4,1829.1,0.56672596]
[1680549433085,6.77894827,1829.4,1829.1,0.56672596]
[1680549433286,0.13770011,1829.4,1829.1,0.7078386]
[1680549433444,0.13570011,1829.4,1829.2,0.56293365]
[1680549434082,0.40901011,1829.4,1829.2,0.56293365]
[1680549434656,0.27331,1829.4,1829.2,0.56293365]
[1680549435391,1.194,1829.5,1829.2,0.70404629]
[1680549435550,1.46529,1829.5,1829.2,0.70404629]
[1680549435750,1.46529,1829.5,1829.2,1.54844677]
[1680549436078,1.192,1829.5,1829.3,0.56293365]
[1680549436281,1.4653,1829.5,1829.3,0.56293365]
[1680549436452,4.193,1829.7,1829.3,0.71777833]
[1680549436809,1.185,1829.7,1829.4,0.56293365]
[1680549438614,1.45826,1829.7,1829.4,0.56293365]
[1680549438819,1.185,1829.7,1829.4,0.56293365]
[1680549439964,1.45827,1829.7,1829.4,0.56293365]
[1680549440207,1.45827,1829.7,1829.5,0.05629337]
[1680549440410,1.24802842,1829.9,1829.5,0.05629337]
[1680549440566,1.24802842,1829.9,1829.5,0.61922702]
[1680549440567,0.13351015,1829.9,1829.5,0.61922702]
[1680549440772,0.27323,1829.9,1829.5,0.61922702]
[1680549441077,0.27323,1829.9,1829.6,0.0619227]
[1680549442082,1.46462075,1829.9,1829.6,0.0619227]
[1680549443677,0.41387718,1830.0,1829.6,3.39087853]
[1680549443895,0.002,1830.3,1829.7,3.32895583]
[1680549444123,0.81955,1830.3,1829.8,0.89582923]
[1680549444282,0.81954,1830.3,1829.8,0.33289558]
[1680549445747,0.27319,1830.3,1829.8,0.33289558]
[1680549445916,0.81954,1830.3,1829.8,0.33289558]
[1680549446230,0.81954,1830.3,1829.8,3.09891776]
[1680549446430,0.81954,1830.3,1829.9,0.30989178]
[1680549446944,0.27319,1830.3,1829.9,0.30989178]
[1680549447118,3.70533038,1830.4,1829.9,0.30989178]
[1680549447319,0.43218038,1830.4,1829.9,3.07591396]
[1680549447524,0.97850038,1830.4,1830.0,0.3075914]
[1680549448646,0.97850038,1830.4,1830.1,7.98272379]
[1680549448647,0.41269798,1830.4,1830.1,7.98272379]
[1680549448845,0.41269798,1830.4,1830.1,7.98472379]
[1680549448997,0.41269798,1830.4,1830.1,8.81493435]
[1680549450399,0.41269798,1830.4,1830.1,0.83221056]
[1680549450642,0.41269798,1830.4,1830.0,0.31138184]
[1680549450799,0.95901798,1830.4,1830.0,0.31138184]
[1680549453257,0.95901798,1830.4,1830.0,0.00379044]
[1680549454420,6.77571798,1830.4,1830.0,0.00379044]
[1680549454639,6.77771798,1830.4,1830.0,0.00379044]
[1680549455346,6.77771798,1830.4,1829.8,1.2]
[1680549455543,5.821,1830.3,1829.8,1.2]
[1680549455869,0.5821,1830.2,1829.8,0.006]
[1680549456170,0.002,1830.3,1829.8,0.27325]
[1680549456470,7.42538798,1830.4,1829.8,0.27325]
[1680549457272,18.22432798,1830.4,1829.8,0.27325]
[1680549457436,1.8224328,1830.3,1829.8,0.27325]
[1680549457630,18.0848,1830.4,1829.8,0.81975]
[1680549457852,18.35797,1830.4,1829.8,0.81975]
[1680549458226,17.16397,1830.4,1829.8,2.01375]
[1680549458428,0.002,1830.4,1830.0,1.194]
[1680549458678,0.24326717,1830.5,1830.1,0.1194]
[1680549458973,0.51641717,1830.5,1829.9,3.59170218]
[1680549459274,0.51641717,1830.5,1829.9,3.04903283]
[1680549459864,1.06270717,1830.5,1829.9,2.77581283]
[1680549460048,1.06270717,1830.5,1830.0,0.27758128]
[1680549460437,0.86270717,1830.5,1829.9,0.00979065]
[1680549461676,0.0194824,1830.4,1829.8,0.006]
[1680549461979,0.81954,1830.3,1829.8,0.00379085]
[1680549462351,0.81954,1830.3,1829.8,0.00979085]
[1680549462575,6.27164,1830.3,1829.8,0.00379085]
[1680549462776,6.27364,1830.3,1829.8,0.00979085]
[1680549462976,5.72729,1830.3,1829.8,0.00979085]
[1680549463779,6.27364,1830.3,1829.8,0.00979085]
[1680549465555,14.03735224,1830.3,1829.8,0.006]
[1680549466038,6.47600224,1830.3,1829.7,0.006]
[1680549466238,5.821,1830.2,1829.7,0.006]
[1680549466474,0.27321,1830.1,1829.7,0.006]
[1680549467289,19.12969,1830.2,1829.7,0.006]
[1680549467899,15.5242895,1830.2,1829.7,0.006]
[1680549469294,12.76229,1830.2,1829.7,0.006]
[1680549469789,13.30867,1830.2,1829.7,0.006]
[1680549470109,13.30867,1830.2,1829.7,0.00979106]
[1680549470779,12.76229,1830.2,1829.7,0.00979106]
[1680549471297,13.30867,1830.2,1829.7,0.00979106]
[1680549472102,11.56829,1830.2,1829.7,0.00979106]
[1680549472322,11.56829,1830.2,1829.7,1.01623817]
[1680549472889,12.11467,1830.2,1829.7,1.01623817]
[1680549473605,11.56829,1830.2,1829.7,1.01623817]
[1680549473811,12.11467,1830.2,1829.7,1.01623817]
[1680549474162,1.2034824,1830.1,1829.7,0.006]
[1680549474520,0.81967,1830.0,1829.6,0.006]
[1680549475064,6.34827,1830.0,1829.6,0.006]
[1680549475378,6.35027,1830.0,1829.6,0.006]
[1680549475780,7.0244824,1829.9,1829.6,0.006]
[1680549475980,0.70244824,1829.8,1829.5,0.006]
[1680549476167,1.2054824,1829.9,1829.5,0.006]
[1680549476168,18.0286824,1829.9,1829.5,0.006]
[1680549476367,18.3039224,1829.9,1829.5,0.006]
[1680549477216,18.8503924,1829.9,1829.5,0.006]
[1680549477418,9.78102218,1829.8,1829.5,0.006]
[1680549477565,7.61889222,1829.7,1829.4,0.006]
[1680549477770,10.3869144,1829.7,1829.4,0.006]
[1680549478271,9.8403844,1829.7,1829.4,0.006]
[1680549478882,9.8403844,1829.7,1829.3,0.56893365]
[1680549479788,9.8403844,1829.7,1829.3,0.006]
[1680549480389,9.8403844,1829.7,1829.3,0.56893365]
[1680549480608,9.5671244,1829.7,1829.3,0.56893365]
[1680549480805,8.86228218,1829.7,1829.3,0.56893365]
[1680549483201,8.86228218,1829.7,1829.3,1.41333413]
[1680549483404,8.86228218,1829.7,1829.3,0.56893365]
[1680549484386,9.40881218,1829.7,1829.3,0.56893365]
[1680549484699,9.4063337,1829.7,1829.3,0.56293365]
[1680549486365,8.8598037,1829.7,1829.3,0.56293365]
[1680549487067,8.5865437,1829.7,1829.3,0.56293365]
[1680549487274,0.002,1829.7,1829.3,0.84418591]
[1680549487571,1.46726,1829.8,1829.3,0.84418591]
[1680549487735,4.23328218,1829.8,1829.4,0.56293365]
[1680549487929,3.03928218,1829.8,1829.4,0.56293365]
[1680549488167,0.27326,1829.8,1829.4,0.73179229]
[1680549488949,11.0062,1829.9,1829.6,0.56293365]
[1680549489269,11.0062,1829.9,1829.6,0.56672492]
[1680549489989,11.27944,1829.9,1829.6,0.56672492]
[1680549490777,11.0062,1829.9,1829.6,0.56672492]
[1680549490979,11.0062,1829.9,1829.7,0.05667249]
[1680549492382,11.0122,1829.9,1829.7,0.05667249]
[1680549492582,11.0062,1829.9,1829.7,0.05667249]
[1680549494592,0.002,1829.9,1829.7,0.05667249]
[1680549494754,6.54644215,1830.1,1829.7,0.05667249]
[1680549494953,6.54844215,1830.1,1829.7,0.05667249]
[1680549497349,6.01351,1830.1,1829.7,0.05667249]
[1680549498756,5.7403,1830.1,1829.7,0.05667249]
[1680549499245,0.002,1830.1,1829.7,0.89286614]
[1680549499450,19.7852,1830.2,1829.8,0.08928661]
[1680549500187,20.33158,1830.2,1829.8,0.08928661]
[1680549500343,26.15258,1830.2,1829.6,0.56293365]
[1680549501817,20.33158,1830.2,1829.6,0.56293365]
[1680549502002,20.33158,1830.2,1829.6,0.83621365]
[1680549502209,20.33158,1830.2,1829.7,0.08362137]
[1680549502391,20.33158,1830.2,1829.7,0.08741243]
[1680549502894,0.002,1830.2,1829.8,0.56293365]
[1680549503095,0.27319,1830.2,1829.8,0.56293365]
[1680549503300,0.27319,1830.2,1829.8,0.5667245]
[1680549503494,0.30652189,1830.3,1829.9,0.05667245]
[1680549504605,0.85287189,1830.3,1829.9,0.05667245]
[1680549504835,0.85287189,1830.3,1829.8,0.5667245]
[1680549505047,0.81954,1830.3,1829.8,0.00379085]
[1680549505212,9.40656218,1830.3,1829.8,0.00379085]
[1680549505412,10.88812739,1830.3,1829.6,1.41333413]
[1680549505626,0.93815396,1830.2,1829.6,1.41333413]
[1680549505935,0.81964,1830.1,1829.7,0.56293365]
[1680549507853,8.60650458,1830.0,1829.6,0.56893365]
[1680549508057,0.27324,1829.9,1829.6,0.56893365]
[1680549508216,0.81971,1829.9,1829.6,0.56293365]
[1680549508418,0.81971,1829.9,1829.5,1.41712561]
[1680549510351,0.81971,1829.9,1829.5,0.57272513]
[1680549515659,0.81971,1829.9,1829.5,0.56672513]
[1680549515824,1.99851786,1829.9,1829.5,0.56672513]
[1680549516223,1.192,1829.7,1829.5,0.56293365]
[1680549516418,0.81984,1829.6,1829.4,0.56893365]
[1680549516634,0.23,1829.5,1829.3,0.56893365]
[1680549516922,0.311984,1829.5,1829.3,0.56293365]
[1680549517161,0.5033,1829.5,1829.3,0.56293365]
[1680549517735,0.2733,1829.5,1829.2,1.41333413]
[1680549518335,0.2733,1829.5,1829.2,0.56893365]
[1680549519373,0.2733,1829.5,1829.2,1.41333413]
[1680549520188,0.81989,1829.5,1829.2,0.56893365]
[1680549520478,1.602479,1829.5,1829.2,0.56893365]
[1680549520683,1.602479,1829.5,1829.2,0.56293365]
[1680549521383,7.423479,1829.5,1829.2,0.56293365]
[1680549521680,1.188,1829.4,1829.1,1.41333413]
[1680549521894,0.81997,1829.3,1829.1,1.41333413]
[1680549522187,7.83497,1829.3,1829.1,0.56293365]
[1680549522365,7.83697,1829.3,1829.0,0.56893365]
[1680549522691,0.23,1829.2,1829.0,0.56893365]
[1680549522841,0.27335,1829.1,1829.0,0.56893365]
[1680549523038,2.2545424,1829.1,1828.9,1.41333413]
[1680549523245,7.8455424,1829.1,1828.9,0.006]
[1680549523446,10.61356458,1829.1,1828.9,0.006]
[1680549523675,2.11146646,1829.0,1828.9,0.56893365]
[1680549524071,2.11146646,1829.0,1828.8,1.51333413]
[1680549524468,2.11146646,1829.0,1828.8,0.66893365]
[1680549524677,7.93246646,1829.0,1828.8,0.66893365]
[1680549524850,7.93446646,1829.0,1828.8,0.66893365]
[1680549525053,0.79344665,1828.9,1828.8,0.66893365]
[1680549525243,1.84359665,1828.9,1828.8,0.106]
[1680549525569,11.62461883,1828.9,1828.8,0.1]
[1680549525775,11.62661883,1828.9,1828.8,0.106]
[1680549526603,11.62661883,1828.9,1828.8,0.1]
[1680549528293,11.62315755,1828.9,1828.8,0.1]
[1680549529573,12.172165,1828.9,1828.8,0.1]
[1680549532792,12.1916474,1828.9,1828.8,0.1]
[1680549533651,15.1916474,1828.9,1828.8,0.1]
[1680549533964,32.0858474,1828.9,1828.8,0.1]
[1680549540456,6.821,1828.8,1828.6,0.06325]
[1680549540786,15.31118996,1828.7,1828.5,0.06325]
[1680549540967,9.77502218,1828.6,1828.5,0.06325]
[1680549541169,13.82731218,1828.6,1828.5,0.06325]
[1680549541375,15.70844446,1828.6,1828.5,0.06325]
[1680549544141,15.72792686,1828.6,1828.5,0.06325]
[1680549548845,17.39425464,1828.6,1828.4,0.0735]
[1680549549054,14.74844764,1828.5,1828.4,0.0735]
[1680549549208,16.93665045,1828.5,1828.4,0.0735]
[1680549549551,16.66456764,1828.5,1828.4,0.0735]
[1680549549696,16.93665045,1828.5,1828.4,0.0735]
[1680549550525,16.70665045,1828.5,1828.4,0.0735]
[1680549550936,16.43456764,1828.5,1828.4,0.0735]
[1680549551939,16.70665045,1828.5,1828.4,0.0735]
[1680549552137,15.74465045,1828.5,1828.4,0.0735]
[1680549552523,12.74465045,1828.5,1828.4,0.0735]
[1680549552724,11.00522499,1828.5,1828.4,0.0735]
[1680549553021,10.73314218,1828.5,1828.4,0.0735]
[1680549554215,13.73314218,1828.5,1828.4,0.0735]
[1680549556253,14.91714218,1828.5,1828.4,0.0735]
[1680549561225,14.91714218,1828.5,1828.3,0.0735]
[1680549561434,16.5071164,1828.4,1828.3,0.0735]
[1680549561758,16.5091164,1828.4,1828.3,0.07075131]
[1680549563569,16.78119921,1828.4,1828.3,0.07075131]
[1680549564620,16.5091164,1828.4,1828.3,0.07075131]
[1680549565260,16.78119921,1828.4,1828.3,0.07075131]
[1680549565571,16.5091164,1828.4,1828.3,0.07075131]
[1680549565722,16.78119921,1828.4,1828.3,0.07075131]
[1680549566057,16.5091164,1828.4,1828.3,0.07075131]
[1680549566658,15.0851164,1828.4,1828.3,0.07075131]
[1680549566821,15.35719921,1828.4,1828.3,0.07075131]
[1680549567264,15.0851164,1828.4,1828.3,0.07075131]
[1680549568248,15.3151164,1828.4,1828.3,0.07075131]
[1680549568446,14.1311164,1828.4,1828.1,1.24229131]
[1680549568675,0.82047,1828.2,1828.1,1.24229131]
[1680549569052,1.05047,1828.2,1828.1,1.24229131]
[1680549569966,0.82047,1828.2,1828.1,1.24229131]
[1680549571570,9.40749218,1828.2,1828.1,1.24229131]
[1680549571735,10.6898374,1828.2,1828.1,1.24229131]
[1680549572577,14.6187674,1828.2,1828.1,1.24229131]
[1680549572727,17.6187674,1828.2,1828.1,1.24229131]
[1680549573159,17.89085021,1828.2,1828.1,1.24229131]
[1680549576090,17.89085021,1828.2,1828.1,1.19229131]
[1680549576779,13.96192021,1828.2,1828.1,1.19229131]
[1680549576982,13.6898374,1828.2,1828.1,1.19229131]
[1680549581890,9.87347,1828.2,1828.1,1.19229131]
[1680549582051,0.50549,1828.2,1828.1,1.19229131]
[1680549582251,9.63749218,1828.2,1828.1,1.19229131]
[1680549582446,9.63949218,1828.2,1828.1,1.19229131]
[1680549583994,0.50549,1828.2,1828.1,1.19229131]
[1680549584194,0.82047,1828.2,1828.1,1.19229131]
[1680549588240,0.27349,1828.2,1828.1,1.19229131]
[1680549588439,0.54696,1828.3,1828.1,1.37819327]
[1680549588745,0.27349,1828.3,1828.1,2.7855274]
[1680549588923,0.27349,1828.3,1828.1,2.78932178]
[1680549589484,0.27349,1828.3,1828.2,0.56293365]
[1680549589793,0.27349,1828.3,1828.1,1.9449213]
[1680549590008,0.27349,1828.3,1828.1,2.78932178]
[1680549590205,0.82044,1828.3,1828.1,2.78932178]
[1680549590382,0.82044,1828.3,1828.1,1.9449213]
[1680549590590,0.82044,1828.3,1828.1,2.78932178]
[1680549591036,0.82044,1828.3,1828.1,1.9449213]
[1680549596229,0.82044,1828.3,1828.1,1.75901934]
[1680549597749,0.82044,1828.3,1828.1,1.75522496]
[1680549600153,0.82044,1828.3,1828.1,1.19229131]
[1680549600393,0.82044,1828.3,1828.1,1.75522496]
[1680549600897,0.54631307,1828.4,1828.1,1.75522496]
[1680549601100,1.36671307,1828.4,1828.3,0.00356088]
[1680549601403,0.8204,1828.4,1828.3,0.00356088]
[1680549605725,1.91425,1828.4,1828.3,0.00356088]
[1680549606220,1.91167345,1828.4,1828.3,0.00356088]
[1680549606471,2.10478904,1828.4,1828.3,0.00356088]
[1680549606929,2.64372598,1828.4,1828.3,0.00356088]
[1680549609179,2.45061039,1828.4,1828.3,0.00356088]
[1680549611760,1.35676039,1828.4,1828.3,0.00356088]
[1680549612309,0.53893694,1828.4,1828.3,0.00356088]
[1680549612659,0.27346,1828.4,1828.3,0.56649453]
[1680549612957,3.27344,1828.6,1828.3,0.56649453]
[1680549613617,3.27344,1828.6,1828.3,0.00356088]
[1680549614754,0.8203,1828.6,1828.3,0.00356088]
[1680549614955,0.27344,1828.6,1828.3,0.9041234]
[1680549615258,0.27344,1828.6,1828.3,0.34118975]
[1680549615555,0.27344,1828.6,1828.3,0.90791736]
[1680549615757,0.27344,1828.6,1828.4,0.09079174]
[1680549616562,0.27344,1828.6,1828.3,0.90791736]
[1680549617365,0.27344,1828.6,1828.3,0.34498371]
[1680549617754,0.27344,1828.6,1828.3,0.90791736]
[1680549618072,0.27343,1828.6,1828.3,0.90791736]
[1680549618417,0.27344,1828.6,1828.3,0.34498371]
[1680549618871,0.82025,1828.7,1828.3,0.90791736]
[1680549619182,0.27342,1828.7,1828.4,0.09079174]
[1680549619362,0.82025,1828.7,1828.4,0.09079174]
[1680549619526,0.82025,1828.7,1828.3,0.34498371]
[1680549619725,0.27342,1828.7,1828.3,0.34498371]
[1680549620276,6.35293,1828.8,1828.3,0.90791736]
[1680549620455,6.62634,1828.8,1828.3,0.90791736]
[1680549620641,6.62634,1828.8,1828.4,0.09079174]
[1680549621222,6.62634,1828.8,1828.3,0.90791736]
[1680549621888,6.62634,1828.8,1828.3,1.75231784]
[1680549622031,6.62634,1828.8,1828.3,0.91391736]
[1680549622230,6.62634,1828.8,1828.3,0.90791736]
[1680549623342,6.62634,1828.8,1828.3,0.91391736]
[1680549623537,6.62634,1828.8,1828.3,0.91191736]
[1680549623743,6.62634,1828.8,1828.3,0.90791736]
[1680549623956,6.62634,1828.8,1828.4,0.09079174]
[1680549625579,6.07951,1828.8,1828.4,0.09079174]
[1680549625784,6.62631,1828.8,1828.4,0.09079174]
[1680549626280,6.62631,1828.8,1828.4,0.65372539]
[1680549626769,6.07951,1828.8,1828.4,0.65372539]
[1680549626972,6.07951,1828.8,1828.5,0.06537254]
[1680549627182,0.27541,1828.8,1828.5,0.06537254]
[1680549627379,0.27341,1828.8,1828.5,0.06537254]
[1680549628240,0.82021,1828.8,1828.5,0.06537254]
[1680549628444,0.82021,1828.8,1828.4,0.09079174]
[1680549628781,0.82021,1828.8,1828.3,0.57028849]
[1680549628782,9.40723218,1828.8,1828.3,0.57028849]
[1680549629079,9.40923218,1828.8,1828.3,0.57628849]
[1680549629225,9.42871458,1828.8,1828.3,0.57628849]
[1680549629427,8.58702218,1828.7,1828.3,0.57628849]
[1680549629626,9.53189364,1828.7,1828.3,0.57628849]
[1680549629830,0.8203,1828.6,1828.3,0.57628849]
[1680549630428,3.58632218,1828.6,1828.3,0.00956088]
[1680549630627,9.40732218,1828.6,1828.3,0.00756088]
[1680549630827,9.40732218,1828.6,1828.3,0.00356088]
[1680549630828,0.27346,1828.4,1828.3,0.00356088]
[1680549631278,0.82035,1828.5,1828.3,0.00356088]
[1680549635541,0.27346,1828.5,1828.3,0.00356088]
[1680549635866,0.27544,1828.6,1828.3,0.56649453]
[1680549636029,0.27345,1828.5,1828.3,0.56649453]
[1680549636229,0.27344,1828.6,1828.3,0.98856345]
[1680549636873,17.78147,1828.7,1828.3,0.56649453]
[1680549637073,17.23463,1828.7,1828.3,0.56649453]
[1680549637833,17.78146,1828.7,1828.3,0.56649453]
[1680549638666,6.48206,1828.7,1828.3,0.56649453]
[1680549639985,7.57573,1828.7,1828.3,0.56649453]
[1680549640182,18.26321518,1828.7,1828.3,0.56649453]
[1680549640702,18.28269758,1828.7,1828.3,0.56649453]
[1680549643072,5.93523,1828.7,1828.3,0.56649453]
[1680549643655,6.48206,1828.7,1828.3,0.56649453]
[1680549648369,7.015,1828.4,1828.3,0.00356088]
[1680549648577,14.92725218,1828.4,1828.3,0.00356088]
[1680549648824,16.4205774,1828.4,1828.3,0.00356088]
[1680549649202,16.4400598,1828.4,1828.3,0.00356088]
[1680549650038,16.4460598,1828.4,1828.3,0.00356088]
[1680549652779,16.98855073,1828.4,1828.3,0.00356088]
[1680549655647,16.98472076,1828.4,1828.3,0.00356088]
[1680549655806,16.97872076,1828.4,1828.3,0.00356088]
[1680549658297,8.45474311,1828.4,1828.3,0.00356088]
[1680549658703,1.36487093,1828.4,1828.3,0.00356088]
[1680549658918,1.36287093,1828.4,1828.3,0.00356088]
[1680549660254,0.81595093,1828.4,1828.3,0.00356088]
[1680549660405,0.54689,1828.5,1828.3,0.00356088]
[1680549660604,0.27345,1828.5,1828.3,0.28451697]
[1680549661815,0.27345,1828.5,1828.3,0.29051697]
[1680549662827,0.54686,1828.6,1828.3,0.29051697]
[1680549662828,5.6618,1828.7,1828.3,0.29051697]
[1680549663034,0.27344,1828.6,1828.3,0.29051697]
[1680549663247,0.8203,1828.6,1828.3,0.29051697]
[1680549665442,0.8203,1828.6,1828.3,0.00956088]
[1680549667070,3.58632218,1828.6,1828.3,0.00956088]
[1680549668693,3.58632218,1828.6,1828.3,0.00356088]
[1680549668991,3.58632218,1828.6,1828.3,0.00956088]
[1680549670046,0.8203,1828.6,1828.3,0.00956088]
[1680549670802,0.8203,1828.6,1828.3,0.34718975]
[1680549671495,10.59132218,1828.6,1828.3,0.00956088]
[1680549671688,10.59332218,1828.6,1828.3,0.00956088]
[1680549672098,3.58832218,1828.6,1828.3,0.00956088]
[1680549672262,3.58632218,1828.6,1828.3,0.00956088]
[1680549673400,9.40732218,1828.6,1828.3,0.00956088]
[1680549673694,11.4184354,1828.6,1828.3,0.00956088]
[1680549675871,2.76602218,1828.5,1828.3,0.00956088]
[1680549676199,2.14423,1828.4,1828.3,0.00956088]
[1680549676400,4.91025218,1828.4,1828.3,0.00956088]
[1680549676891,13.46588218,1828.4,1828.3,0.00356088]
[1680549677063,14.9334704,1828.4,1828.3,0.00356088]
[1680549677388,14.9529528,1828.4,1828.3,0.00356088]
[1680549681894,15.48883023,1828.4,1828.3,0.00356088]
[1680549682245,19.68283023,1828.4,1828.3,0.00356088]
[1680549689976,19.68283023,1828.4,1828.3,0.00112888]
[1680549693110,19.63283023,1828.4,1828.3,0.00112888]
[1680549696175,21.29559073,1828.4,1828.3,0.00112888]
[1680549697472,21.42890673,1828.4,1828.3,0.00112888]
[1680549699393,18.74983611,1828.4,1828.3,0.00112888]
[1680549699600,18.51983611,1828.4,1828.3,0.00112888]
[1680549700552,19.70483611,1828.4,1828.3,0.00112888]
[1680549700914,19.93483611,1828.4,1828.3,0.00112888]
[1680549706297,19.93883611,1828.4,1828.3,0.00112888]
[1680549706500,21.93086796,1828.4,1828.3,0.00112888]
[1680549707801,21.93686796,1828.4,1828.3,0.00112888]
[1680549708401,21.93086796,1828.4,1828.3,0.00112888]
[1680549709892,21.93086796,1828.4,1828.2,2.8]
[1680549710170,11.81702218,1828.3,1828.2,2.8]
[1680549710363,14.85552898,1828.3,1828.2,2.806]
[1680549711138,12.63944218,1828.3,1828.2,2.806]
[1680549711744,6.81844218,1828.3,1828.2,2.806]
[1680549712100,7.49344218,1828.3,1828.2,2.806]
[1680549712851,13.31444218,1828.3,1828.2,2.806]
[1680549713059,1.0,1828.2,1828.1,0.63784211]
[1680549713201,1.0,1828.2,1828.0,0.1]
[1680549713202,26.90034862,1828.2,1827.5,0.102]
[1680549713397,7.17,1827.6,1827.5,0.1]
[1680549713621,11.85309218,1827.6,1827.5,0.1]
[1680549713924,12.08309218,1827.6,1827.5,0.1]
[1680549714511,12.08909218,1827.6,1827.5,0.1]
[1680549715508,4.68909218,1827.6,1827.5,0.1]
[1680549715728,4.68109218,1827.6,1827.5,0.1]
[1680549716888,1.91507,1827.6,1827.5,0.1]
[1680549718456,10.73209218,1827.6,1827.5,0.1]
[1680549718658,1.92307,1827.6,1827.5,0.1]
[1680549718953,10.50209218,1827.6,1827.5,0.1]
[1680549719273,4.91909218,1827.6,1827.5,0.1]
[1680549719568,4.91709218,1827.6,1827.5,0.1]
[1680549720476,5.45367203,1827.6,1827.5,0.1]
[1680549720675,5.45567203,1827.6,1827.5,0.1]
[1680549723194,5.22567203,1827.6,1827.5,0.1]
[1680549724903,11.27667203,1827.6,1827.5,0.1]
[1680549725112,12.71775918,1827.6,1827.5,0.1]
[1680549726313,11.27667203,1827.6,1827.5,0.1]
[1680549730083,11.27667203,1827.6,1827.5,2.9]
[1680549733545,12.73375484,1827.6,1827.5,1.82361785]
[1680549733706,16.40517373,1827.6,1827.5,1.82361785]
[1680549734038,18.35971105,1827.6,1827.5,1.82361785]
[1680549734383,20.01197,1827.6,1827.5,1.82361785]
[1680549736136,19.34055111,1827.6,1827.5,1.82361785]
[1680549736337,54.34055111,1827.6,1827.5,1.82361785]
[1680549737091,55.7593685,1827.6,1827.5,1.68812406]
[1680549738320,55.48728569,1827.6,1827.5,1.68812406]
[1680549738526,55.49328569,1827.6,1827.5,1.68812406]
[1680549739399,55.7653685,1827.6,1827.5,1.68812406]
[1680549741307,55.01797,1827.6,1827.5,1.68812406]
[1680549741727,55.01197,1827.6,1827.5,1.55172406]
[1680549742433,55.01197,1827.6,1827.4,0.1]
[1680549742615,24.23201918,1827.5,1827.4,0.1]
[1680549742820,27.79076918,1827.5,1827.4,0.1]
[1680549743163,28.06285199,1827.5,1827.4,0.1]
[1680549749679,26.86885199,1827.5,1827.4,0.1]
[1680549751886,28.06285199,1827.5,1827.4,0.1]
[1680549753272,28.06285199,1827.5,1827.4,1.6]
[1680549753475,22.34305199,1827.5,1827.4,1.6]
[1680549755494,22.07096918,1827.5,1827.4,1.6]
[1680549755807,22.34305199,1827.5,1827.4,1.6]
[1680549756194,23.01447088,1827.5,1827.4,1.6]
[1680549759114,11.89102218,1827.4,1827.1,0.02156]
[1680549759268,26.56063218,1827.2,1826.5,4.04301358]
[1680549759609,10.47418,1826.7,1826.5,3.2006131]
[1680549759777,10.47418,1826.7,1826.5,0.002]
[1680549759778,2.76602218,1826.6,1826.5,0.002]
[1680549760122,3.58721218,1826.6,1826.4,0.94440048]
[1680549760414,3.59321218,1826.6,1826.4,0.94440048]
[1680549761509,3.58721218,1826.6,1826.4,0.89440048]
[1680549762742,0.23,1826.5,1826.4,0.89440048]
[1680549762887,3.81725218,1826.5,1826.4,0.89440048]
[1680549763637,3.81725218,1826.5,1826.4,0.05]
[1680549765541,3.81725218,1826.5,1826.3,0.94440048]
[1680549765727,2.76602218,1826.4,1826.3,0.94440048]
[1680549766055,3.58730218,1826.4,1826.3,0.1]
[1680549766360,1.0,1826.3,1825.7,7.17785339]
[1680549766554,1.0,1826.3,1824.4,2.00529493]
[1680549766555,3.304,1825.1,1824.4,2.00529493]
[1680549766756,1.0,1824.6,1824.4,1.71932627]
[1680549766968,1.0,1824.6,1823.3,0.0074068]
[1680549766969,13.88379,1824.5,1823.3,0.0074068]
[1680549767109,9.025,1824.0,1822.8,2.5649585]
[1680549767462,1.88248544,1823.5,1822.4,1.14436837]
[1680549767666,1.37114,1823.3,1822.9,6.37192275]
[1680549767813,1.89293211,1823.3,1822.9,6.22192275]
[1680549768012,1.02528073,1823.5,1822.9,0.008]
[1680549768218,1.02528073,1823.5,1822.6,8.0]